[Event "December 12 Late 2023"]
[Site "https://www.chess.com"]
[Date "2023.12.12"]
[Round "4"]
[White "Marcziter, Dmitrii"]
[Black "Shton, Roman"]
[Result "1-0"]
[Board "104"]
[TimeControl "180+1"]
[WhiteFideId "13900765"]
[BlackFideId "14137461"]
[WhiteElo "2315"]
[BlackElo "2499"]
[WhiteTeam "GER"]
[BlackTeam "UKR"]
[WhiteClock "0:00:10"]
[BlackClock "0:00:16"]

1. d4 {[%clk 0:02:25]}  Nf6 {[%clk 0:02:58]} 2. Nf3 {[%clk 0:02:24]}  d5 {[%clk 0:02:58]} 3. c4 {[%clk 0:02:24]}  e6 {[%clk 0:02:59]} 4. Nc3 {[%clk 0:02:23]}  Bb4 {[%clk 0:02:59]} 5. Bg5 {[%clk 0:02:23]}  h6 {[%clk 0:02:50]} 6. Bh4 {[%clk 0:02:21]}  dxc4 {[%clk 0:02:45]} 7. Qa4+ {[%clk 0:02:19]}  Nc6 {[%clk 0:02:45]} 8. e3 {[%clk 0:02:19]}  g5 {[%clk 0:02:39]} 9. Bg3 {[%clk 0:02:18]}  Nd5 {[%clk 0:02:36]} 10. Rc1 {[%clk 0:02:14]}  Bd7 {[%clk 0:02:30]} 11. e4 {[%clk 0:01:51]}  Nxd4 {[%clk 0:02:25]} 12. Qd1 {[%clk 0:01:48]}  Nxf3+ {[%clk 0:02:17]} 13. Qxf3 {[%clk 0:01:48]}  Nxc3 {[%clk 0:02:14]} 14. bxc3 {[%clk 0:01:47]}  Ba3 {[%clk 0:02:10]} 15. Rd1 {[%clk 0:01:46]}  Qe7 {[%clk 0:01:55]} 16. Be5 {[%clk 0:01:39]}  Rg8 {[%clk 0:01:54]} 17. Bf6 {[%clk 0:01:38]}  Qc5 {[%clk 0:01:53]} 18. Be2 {[%clk 0:01:30]}  Ba4 {[%clk 0:01:16]} 19. Rd4 {[%clk 0:01:27]}  g4 {[%clk 0:01:10]} 20. Qg3 {[%clk 0:01:17]}  Rg6 {[%clk 0:01:05]} 21. e5 {[%clk 0:01:03]}  Qc6 {[%clk 0:00:39]} 22. Rxc4 {[%clk 0:00:53]}  Qd7 {[%clk 0:00:34]} 23. O-O {[%clk 0:00:42]}  Be7 {[%clk 0:00:33]} 24. Bxe7 {[%clk 0:00:31]}  Kxe7 {[%clk 0:00:34]} 25. Qh4+ {[%clk 0:00:28]}  Kf8 {[%clk 0:00:33]} 26. Rd4 {[%clk 0:00:24]}  Qc6 {[%clk 0:00:29]} 27. Bd3 {[%clk 0:00:10]}  Qxc3 {[%clk 0:00:16]} 28. Rd8+ {[%clk 0:00:10]}  Rxd8 {[%clk 0:00:16]} 29. Qxd8+ {[%clk 0:00:10]}  Kg7 {[%clk 0:00:16]} 30. Bxg6 {[%clk 0:00:11]}  Kxg6 {[%clk 0:00:16]} 31. Qf6+ {[%clk 0:00:11]}  Kh7 {[%clk 0:00:16]} 32. Qxf7+ {[%clk 0:00:10]}  Kh8 {[%clk 0:00:17]} 33. Qf8+ {[%clk 0:00:10]}  Kh7 {[%clk 0:00:18]} 34. Qf7+ {[%clk 0:00:09]}  Kh8 {[%clk 0:00:18]} 35. Qf6+ {[%clk 0:00:10]}  Kh7 {[%clk 0:00:19]} 36. Qxe6 {[%clk 0:00:10]}  Bc6 {[%clk 0:00:18]} 37. Rd1 {[%clk 0:00:10]}  Qc2 {[%clk 0:00:17]} 38. Qf7+ {[%clk 0:00:10]}  Kh8 {[%clk 0:00:16]} 39. Rd8+ {[%clk 0:00:10]}  Be8 {[%clk 0:00:16]} 40. Rxe8# {[%clk 0:00:10]} 1-0

[Event "December 12 Late 2023"]
[Site "https://www.chess.com"]
[Date "2023.12.12"]
[Round "4"]
[White "Sarkar, Justin"]
[Black "Garcia Almaguer, Juan Manuel"]
[Result "1/2-1/2"]
[Board "107"]
[TimeControl "180+1"]
[WhiteFideId "2010011"]
[BlackFideId "5110491"]
[WhiteElo "2288"]
[BlackElo "2488"]
[WhiteTeam "USA"]
[BlackTeam "MEX"]
[WhiteClock "0:00:07"]
[BlackClock "0:00:35"]

1. d4 {[%clk 0:02:34]}  Nf6 {[%clk 0:02:57]} 2. c4 {[%clk 0:02:34]}  e6 {[%clk 0:02:54]} 3. g3 {[%clk 0:02:34]}  d5 {[%clk 0:02:52]} 4. Bg2 {[%clk 0:02:33]}  c5 {[%clk 0:02:52]} 5. cxd5 {[%clk 0:02:29]}  exd5 {[%clk 0:02:53]} 6. Nf3 {[%clk 0:02:25]}  Nc6 {[%clk 0:02:52]} 7. O-O {[%clk 0:02:23]}  Be6 {[%clk 0:02:48]} 8. Nc3 {[%clk 0:02:14]}  Rc8 {[%clk 0:02:44]} 9. dxc5 {[%clk 0:02:09]}  Bxc5 {[%clk 0:02:42]} 10. Bg5 {[%clk 0:02:08]}  O-O {[%clk 0:02:17]} 11. Rc1 {[%clk 0:01:58]}  Be7 {[%clk 0:02:15]} 12. Nd4 {[%clk 0:01:54]}  h6 {[%clk 0:02:12]} 13. Be3 {[%clk 0:01:29]}  Nxd4 {[%clk 0:02:03]} 14. Bxd4 {[%clk 0:01:27]}  b6 {[%clk 0:02:03]} 15. Qd3 {[%clk 0:01:19]}  Qd7 {[%clk 0:01:54]} 16. Rfd1 {[%clk 0:01:06]}  Rfd8 {[%clk 0:01:52]} 17. Qb5 {[%clk 0:00:35]}  Ne8 {[%clk 0:01:24]} 18. Qxd7 {[%clk 0:00:31]}  Rxd7 {[%clk 0:01:25]} 19. Nxd5 {[%clk 0:00:27]}  Rxc1 {[%clk 0:01:12]} 20. Nxe7+ {[%clk 0:00:28]}  Rxe7 {[%clk 0:01:12]} 21. Rxc1 {[%clk 0:00:28]}  Bxa2 {[%clk 0:01:12]} 22. e4 {[%clk 0:00:25]}  Rc7 {[%clk 0:01:07]} 23. Rxc7 {[%clk 0:00:21]}  Nxc7 {[%clk 0:01:08]} 24. f4 {[%clk 0:00:21]}  Kf8 {[%clk 0:01:04]} 25. Kf2 {[%clk 0:00:20]}  Nb5 {[%clk 0:01:01]} 26. Be5 {[%clk 0:00:20]}  f6 {[%clk 0:01:00]} 27. Bb8 {[%clk 0:00:19]}  Bc4 {[%clk 0:01:00]} 28. e5 {[%clk 0:00:18]}  fxe5 {[%clk 0:00:56]} 29. fxe5 {[%clk 0:00:18]}  a5 {[%clk 0:00:56]} 30. Ke3 {[%clk 0:00:17]}  Ke7 {[%clk 0:00:52]} 31. Bc6 {[%clk 0:00:16]}  Kd8 {[%clk 0:00:46]} 32. Bxb5 {[%clk 0:00:12]}  Bxb5 {[%clk 0:00:47]} 33. Bd6 {[%clk 0:00:12]}  h5 {[%clk 0:00:44]} 34. Bf8 {[%clk 0:00:12]}  g6 {[%clk 0:00:45]} 35. e6 {[%clk 0:00:10]}  Bc4 {[%clk 0:00:44]} 36. e7+ {[%clk 0:00:09]}  Ke8 {[%clk 0:00:44]} 37. Kf4 {[%clk 0:00:09]}  b5 {[%clk 0:00:43]} 38. Kg5 {[%clk 0:00:09]}  Bf7 {[%clk 0:00:43]} 39. Kf6 {[%clk 0:00:09]}  a4 {[%clk 0:00:43]} 40. Bh6 {[%clk 0:00:09]}  b4 {[%clk 0:00:42]} 41. Bd2 {[%clk 0:00:09]}  a3 {[%clk 0:00:37]} 42. bxa3 {[%clk 0:00:09]}  bxa3 {[%clk 0:00:37]} 43. Bc3 {[%clk 0:00:09]}  a2 {[%clk 0:00:37]} 44. h3 {[%clk 0:00:08]}  g5 {[%clk 0:00:35]} 45. Kxg5 {[%clk 0:00:07]}  Kxe7 {[%clk 0:00:35]} 46. g4 {[%clk 0:00:08]}  hxg4 {[%clk 0:00:36]} 47. hxg4 {[%clk 0:00:08]}  Kf8 {[%clk 0:00:34]} 48. Kh6 {[%clk 0:00:08]}  Kg8 {[%clk 0:00:35]} 49. g5 {[%clk 0:00:08]}  Bb3 {[%clk 0:00:36]} 50. g6 {[%clk 0:00:08]}  a1=Q {[%clk 0:00:35]} 51. Bxa1 {[%clk 0:00:08]}  Bc2 {[%clk 0:00:35]} 52. Bb2 {[%clk 0:00:07]}  Bxg6 {[%clk 0:00:35]} 1/2-1/2

[Event "December 12 Late 2023"]
[Site "https://www.chess.com"]
[Date "2023.12.12"]
[Round "4"]
[White "Yashmetov, Mikhail"]
[Black "Erece, Ece Alkim"]
[Result "1-0"]
[Board "110"]
[TimeControl "180+1"]
[WhiteFideId "24198900"]
[BlackFideId "6346006"]
[WhiteElo "2480"]
[BlackElo "2266"]
[WhiteTeam "RUS"]
[BlackTeam "TUR"]
[WhiteClock "0:02:28"]
[BlackClock "0:00:06"]

1. f4 {[%clk 0:02:59]}  d5 {[%clk 0:02:57]} 2. Nf3 {[%clk 0:03:00]}  c6 {[%clk 0:02:57]} 3. g3 {[%clk 0:03:00]}  Nf6 {[%clk 0:02:56]} 4. Bg2 {[%clk 0:03:01]}  Bg4 {[%clk 0:02:56]} 5. O-O {[%clk 0:03:01]}  Bxf3 {[%clk 0:02:55]} 6. Bxf3 {[%clk 0:03:02]}  Nbd7 {[%clk 0:02:56]} 7. d4 {[%clk 0:03:00]}  e6 {[%clk 0:02:55]} 8. e3 {[%clk 0:03:00]}  Bd6 {[%clk 0:02:53]} 9. c4 {[%clk 0:03:00]}  dxc4 {[%clk 0:02:47]} 10. Nd2 {[%clk 0:02:59]}  Nb6 {[%clk 0:02:45]} 11. Qe2 {[%clk 0:02:56]}  O-O {[%clk 0:02:35]} 12. Nxc4 {[%clk 0:02:56]}  Nxc4 {[%clk 0:02:35]} 13. Qxc4 {[%clk 0:02:57]}  Rc8 {[%clk 0:02:33]} 14. e4 {[%clk 0:02:55]}  b5 {[%clk 0:02:24]} 15. Qb3 {[%clk 0:02:54]}  Be7 {[%clk 0:02:17]} 16. Be3 {[%clk 0:02:53]}  a6 {[%clk 0:02:11]} 17. Rfd1 {[%clk 0:02:52]}  Qb6 {[%clk 0:02:10]} 18. Rac1 {[%clk 0:02:46]}  Rfd8 {[%clk 0:02:10]} 19. Kg2 {[%clk 0:02:41]}  h5 {[%clk 0:01:55]} 20. d5 {[%clk 0:02:40]}  c5 {[%clk 0:01:41]} 21. d6 {[%clk 0:02:38]}  Rxd6 {[%clk 0:01:16]} 22. Rxd6 {[%clk 0:02:35]}  Qxd6 {[%clk 0:01:15]} 23. e5 {[%clk 0:02:35]}  Qd7 {[%clk 0:01:02]} 24. exf6 {[%clk 0:02:34]}  Bxf6 {[%clk 0:01:01]} 25. Rd1 {[%clk 0:02:35]}  Bd4 {[%clk 0:00:50]} 26. Qd3 {[%clk 0:02:31]}  Rd8 {[%clk 0:00:36]} 27. b4 {[%clk 0:02:26]}  Qc7 {[%clk 0:00:20]} 28. bxc5 {[%clk 0:02:26]}  Bf6 {[%clk 0:00:14]} 29. Qc2 {[%clk 0:02:27]}  Rxd1 {[%clk 0:00:13]} 30. Qxd1 {[%clk 0:02:27]}  g6 {[%clk 0:00:11]} 31. c6 {[%clk 0:02:28]}  a5 {[%clk 0:00:06]} 32. Qd7 {[%clk 0:02:28]} 1-0

[Event "December 12 Late 2023"]
[Site "https://www.chess.com"]
[Date "2023.12.12"]
[Round "4"]
[White "Yandarbiev, Ruslan"]
[Black "Gao, Raymond"]
[Result "1-0"]
[Board "112"]
[TimeControl "180+1"]
[WhiteFideId "4115023"]
[BlackFideId "2629429"]
[WhiteElo "2477"]
[BlackElo "2248"]
[WhiteTeam "RUS"]
[BlackTeam "CAN"]
[WhiteClock "0:00:53"]
[BlackClock "0:00:03"]

1. c4 {[%clk 0:03:00]}  Nf6 {[%clk 0:02:58]} 2. g3 {[%clk 0:03:01]}  e6 {[%clk 0:02:55]} 3. Bg2 {[%clk 0:03:01]}  d5 {[%clk 0:02:55]} 4. Nf3 {[%clk 0:03:02]}  Be7 {[%clk 0:02:56]} 5. O-O {[%clk 0:03:02]}  O-O {[%clk 0:02:57]} 6. b3 {[%clk 0:03:00]}  c5 {[%clk 0:02:56]} 7. cxd5 {[%clk 0:03:00]}  Nxd5 {[%clk 0:02:47]} 8. d4 {[%clk 0:03:00]}  Nc6 {[%clk 0:02:47]} 9. dxc5 {[%clk 0:02:59]}  Bxc5 {[%clk 0:02:47]} 10. Qc2 {[%clk 0:02:57]}  Be7 {[%clk 0:02:46]} 11. a3 {[%clk 0:02:57]}  Bd7 {[%clk 0:02:46]} 12. b4 {[%clk 0:02:57]}  Bf6 {[%clk 0:02:42]} 13. Bb2 {[%clk 0:02:57]}  Rc8 {[%clk 0:02:43]} 14. Qb3 {[%clk 0:02:54]}  Bxb2 {[%clk 0:02:35]} 15. Qxb2 {[%clk 0:02:55]}  Qf6 {[%clk 0:02:35]} 16. Qxf6 {[%clk 0:02:52]}  Nxf6 {[%clk 0:02:36]} 17. Nbd2 {[%clk 0:02:52]}  Rfd8 {[%clk 0:02:36]} 18. Rfc1 {[%clk 0:02:50]}  e5 {[%clk 0:02:31]} 19. Nc4 {[%clk 0:02:49]}  e4 {[%clk 0:02:28]} 20. Nfe5 {[%clk 0:02:39]}  Be6 {[%clk 0:02:17]} 21. Nxc6 {[%clk 0:02:35]}  Rxc6 {[%clk 0:02:17]} 22. Na5 {[%clk 0:02:27]}  Rxc1+ {[%clk 0:01:57]} 23. Rxc1 {[%clk 0:02:28]}  b6 {[%clk 0:01:57]} 24. Nc6 {[%clk 0:02:27]}  Re8 {[%clk 0:01:51]} 25. e3 {[%clk 0:02:23]}  h5 {[%clk 0:01:46]} 26. Nxa7 {[%clk 0:02:22]}  Ra8 {[%clk 0:01:45]} 27. Nb5 {[%clk 0:02:22]}  Bd7 {[%clk 0:01:34]} 28. Nc3 {[%clk 0:02:21]}  Rxa3 {[%clk 0:01:27]} 29. Nxe4 {[%clk 0:02:21]}  Nxe4 {[%clk 0:01:28]} 30. Bxe4 {[%clk 0:02:21]}  Rb3 {[%clk 0:01:28]} 31. Rc4 {[%clk 0:01:45]}  g6 {[%clk 0:01:09]} 32. Kg2 {[%clk 0:01:40]}  Be6 {[%clk 0:00:44]} 33. Rd4 {[%clk 0:01:40]}  Kg7 {[%clk 0:00:43]} 34. h4 {[%clk 0:01:37]}  Kf6 {[%clk 0:00:35]} 35. Bf3 {[%clk 0:01:37]}  Rb2 {[%clk 0:00:29]} 36. g4 {[%clk 0:01:34]}  hxg4 {[%clk 0:00:22]} 37. Bxg4 {[%clk 0:01:35]}  Ba2 {[%clk 0:00:15]} 38. Rd6+ {[%clk 0:01:33]}  Kg7 {[%clk 0:00:13]} 39. Rxb6 {[%clk 0:01:33]}  Bd5+ {[%clk 0:00:12]} 40. Bf3 {[%clk 0:01:34]}  Bc4 {[%clk 0:00:11]} 41. Kg3 {[%clk 0:01:30]}  Rb1 {[%clk 0:00:09]} 42. Rb7 {[%clk 0:01:19]}  Rg1+ {[%clk 0:00:08]} 43. Kh2 {[%clk 0:01:20]}  Rf1 {[%clk 0:00:08]} 44. Kg2 {[%clk 0:01:20]}  Rb1 {[%clk 0:00:08]} 45. Bc6 {[%clk 0:01:16]}  Kf6 {[%clk 0:00:08]} 46. b5 {[%clk 0:01:16]}  Rb4 {[%clk 0:00:07]} 47. b6 {[%clk 0:01:14]}  Ba6 {[%clk 0:00:05]} 48. Rb8 {[%clk 0:01:15]}  Ke7 {[%clk 0:00:05]} 49. Kg3 {[%clk 0:01:09]}  Rb1 {[%clk 0:00:03]} 50. Bf3 {[%clk 0:01:09]}  Rg1+ {[%clk 0:00:03]} 51. Kh2 {[%clk 0:01:09]}  Rb1 {[%clk 0:00:03]} 52. b7 {[%clk 0:01:03]}  Rb2 {[%clk 0:00:02]} 53. Kg3 {[%clk 0:01:00]}  Kf6 {[%clk 0:00:03]} 54. Ra8 {[%clk 0:00:58]}  Bxb7 {[%clk 0:00:03]} 55. Rb8 {[%clk 0:00:58]}  Bxf3 {[%clk 0:00:03]} 56. Rxb2 {[%clk 0:00:57]}  Bd5 {[%clk 0:00:03]} 57. Kf4 {[%clk 0:00:57]}  Be6 {[%clk 0:00:04]} 58. Rb6 {[%clk 0:00:56]}  Kg7 {[%clk 0:00:04]} 59. Kg5 {[%clk 0:00:55]}  Bc4 {[%clk 0:00:02]} 60. h5 {[%clk 0:00:54]}  gxh5 {[%clk 0:00:03]} 61. Kxh5 {[%clk 0:00:54]}  Bd3 {[%clk 0:00:04]} 62. Kg5 {[%clk 0:00:55]}  Bg6 {[%clk 0:00:05]} 63. f4 {[%clk 0:00:55]}  Bc2 {[%clk 0:00:05]} 64. Rc6 {[%clk 0:00:55]}  Bd3 {[%clk 0:00:05]} 65. Rd6 {[%clk 0:00:55]}  Be4 {[%clk 0:00:05]} 66. Rd4 {[%clk 0:00:55]}  Bb1 {[%clk 0:00:06]} 67. e4 {[%clk 0:00:56]}  Ba2 {[%clk 0:00:06]} 68. e5 {[%clk 0:00:55]}  Bb1 {[%clk 0:00:05]} 69. f5 {[%clk 0:00:55]}  Ba2 {[%clk 0:00:06]} 70. Rd7 {[%clk 0:00:55]}  Kh7 {[%clk 0:00:05]} 71. Kf6 {[%clk 0:00:55]}  Kg8 {[%clk 0:00:05]} 72. Rd8+ {[%clk 0:00:53]}  Kh7 {[%clk 0:00:05]} 73. Rf8 {[%clk 0:00:53]}  Kh6 {[%clk 0:00:03]} 74. Rh8# {[%clk 0:00:53]} 1-0

[Event "December 12 Late 2023"]
[Site "https://www.chess.com"]
[Date "2023.12.12"]
[Round "4"]
[White "Gutierrez Olivares, Daniel"]
[Black "Awoki, Daniel Teidi"]
[Result "0-1"]
[Board "113"]
[TimeControl "180+1"]
[WhiteFideId "2264005"]
[BlackFideId "2100827"]
[WhiteElo "2473"]
[BlackElo "2246"]
[WhiteTeam "ESP"]
[BlackTeam "BRA"]
[WhiteClock "0:00:29"]
[BlackClock "0:00:10"]

1. Nf3 {[%clk 0:02:37]}  d5 {[%clk 0:02:59]} 2. g3 {[%clk 0:02:38]}  e6 {[%clk 0:03:00]} 3. d3 {[%clk 0:02:37]}  Nf6 {[%clk 0:03:01]} 4. Nbd2 {[%clk 0:02:38]}  Be7 {[%clk 0:03:01]} 5. e4 {[%clk 0:02:38]}  O-O {[%clk 0:03:02]} 6. Bg2 {[%clk 0:02:39]}  dxe4 {[%clk 0:03:03]} 7. dxe4 {[%clk 0:02:40]}  Nc6 {[%clk 0:03:02]} 8. e5 {[%clk 0:02:40]}  Nd5 {[%clk 0:03:02]} 9. O-O {[%clk 0:02:40]}  Nb6 {[%clk 0:02:59]} 10. Re1 {[%clk 0:02:41]}  Nd4 {[%clk 0:02:51]} 11. c3 {[%clk 0:02:33]}  Nxf3+ {[%clk 0:02:50]} 12. Qxf3 {[%clk 0:02:34]}  c6 {[%clk 0:02:46]} 13. Ne4 {[%clk 0:02:33]}  Qc7 {[%clk 0:02:45]} 14. Bf4 {[%clk 0:02:31]}  Nd5 {[%clk 0:02:43]} 15. Rad1 {[%clk 0:02:25]}  Nxf4 {[%clk 0:02:41]} 16. Qxf4 {[%clk 0:02:25]}  Bd7 {[%clk 0:02:39]} 17. h4 {[%clk 0:02:24]}  Rad8 {[%clk 0:02:37]} 18. h5 {[%clk 0:02:25]}  h6 {[%clk 0:02:29]} 19. g4 {[%clk 0:02:24]}  f5 {[%clk 0:02:16]} 20. Ng3 {[%clk 0:02:18]}  Bg5 {[%clk 0:02:13]} 21. Qc4 {[%clk 0:02:14]}  fxg4 {[%clk 0:02:10]} 22. Qxg4 {[%clk 0:02:10]}  Rf4 {[%clk 0:02:00]} 23. Qe2 {[%clk 0:02:09]}  Rdf8 {[%clk 0:01:58]} 24. Ne4 {[%clk 0:02:06]}  Be7 {[%clk 0:01:52]} 25. Rf1 {[%clk 0:01:54]}  Be8 {[%clk 0:01:52]} 26. Nd6 {[%clk 0:01:50]}  Bxd6 {[%clk 0:01:45]} 27. exd6 {[%clk 0:01:50]}  Qd7 {[%clk 0:01:43]} 28. Bh3 {[%clk 0:01:49]}  Bf7 {[%clk 0:01:33]} 29. Qe5 {[%clk 0:01:47]}  Rf6 {[%clk 0:01:24]} 30. c4 {[%clk 0:01:36]}  b6 {[%clk 0:01:24]} 31. b4 {[%clk 0:01:35]}  c5 {[%clk 0:01:04]} 32. bxc5 {[%clk 0:01:34]}  Rc8 {[%clk 0:01:05]} 33. cxb6 {[%clk 0:01:29]}  axb6 {[%clk 0:01:06]} 34. Rd4 {[%clk 0:01:27]}  Rc5 {[%clk 0:01:06]} 35. Qe4 {[%clk 0:01:20]}  Rg5+ {[%clk 0:01:00]} 36. Kh2 {[%clk 0:01:11]}  Rxh5 {[%clk 0:01:00]} 37. Rd3 {[%clk 0:00:58]}  Bg6 {[%clk 0:00:49]} 38. Qa8+ {[%clk 0:00:54]}  Rf8 {[%clk 0:00:49]} 39. Qa3 {[%clk 0:00:38]}  Bxd3 {[%clk 0:00:46]} 40. Qxd3 {[%clk 0:00:39]}  Rf4 {[%clk 0:00:34]} 41. Rg1 {[%clk 0:00:32]}  Rfh4 {[%clk 0:00:22]} 42. Rg3 {[%clk 0:00:33]}  Kh8 {[%clk 0:00:19]} 43. a4 {[%clk 0:00:32]}  e5 {[%clk 0:00:12]} 44. Rf3 {[%clk 0:00:32]}  e4 {[%clk 0:00:10]} 45. Rf8+ {[%clk 0:00:30]}  Kh7 {[%clk 0:00:10]} 46. Qc2 {[%clk 0:00:28]}  Qxh3+ {[%clk 0:00:10]} 47. Kg1 {[%clk 0:00:29]}  Rg4# {[%clk 0:00:10]} 0-1

[Event "December 12 Late 2023"]
[Site "https://www.chess.com"]
[Date "2023.12.12"]
[Round "4"]
[White "De Lima, Valdenicio Marcelino"]
[Black "yaguigor"]
[Result "0-1"]
[Board "114"]
[TimeControl "180+1"]
[WhiteFideId "2132044"]
[WhiteElo "2239"]
[BlackElo "2467"]
[WhiteTeam "BRA"]
[WhiteClock "0:00:00"]
[BlackClock "0:00:55"]

1. Nf3 {[%clk 0:03:00]}  d5 {[%clk 0:02:59]} 2. d4 {[%clk 0:02:59]}  Nf6 {[%clk 0:02:59]} 3. e3 {[%clk 0:02:57]}  c5 {[%clk 0:02:58]} 4. Nbd2 {[%clk 0:02:56]}  Nc6 {[%clk 0:02:53]} 5. b3 {[%clk 0:02:55]}  cxd4 {[%clk 0:02:52]} 6. exd4 {[%clk 0:02:51]}  Bf5 {[%clk 0:02:51]} 7. Bb2 {[%clk 0:02:41]}  e6 {[%clk 0:02:40]} 8. Bb5 {[%clk 0:02:37]}  Qb6 {[%clk 0:02:35]} 9. Bxc6+ {[%clk 0:02:30]}  Qxc6 {[%clk 0:02:35]} 10. Rc1 {[%clk 0:02:29]}  Qa6 {[%clk 0:02:28]} 11. a3 {[%clk 0:02:17]}  Rc8 {[%clk 0:02:10]} 12. Nh4 {[%clk 0:02:11]}  Bg4 {[%clk 0:02:07]} 13. f3 {[%clk 0:02:07]}  Bh5 {[%clk 0:02:07]} 14. g4 {[%clk 0:02:05]}  Bg6 {[%clk 0:02:07]} 15. Nxg6 {[%clk 0:02:05]}  hxg6 {[%clk 0:02:08]} 16. Qe2 {[%clk 0:02:02]}  Qb6 {[%clk 0:02:00]} 17. b4 {[%clk 0:01:33]}  a5 {[%clk 0:01:52]} 18. b5 {[%clk 0:01:25]}  Bd6 {[%clk 0:01:30]} 19. c4 {[%clk 0:01:03]}  Bf4 {[%clk 0:01:25]} 20. c5 {[%clk 0:01:00]}  Qd8 {[%clk 0:01:24]} 21. Rc2 {[%clk 0:00:53]}  a4 {[%clk 0:01:21]} 22. Bc1 {[%clk 0:00:39]}  Qa5 {[%clk 0:01:14]} 23. Kf1 {[%clk 0:00:32]}  g5 {[%clk 0:01:12]} 24. Nb1 {[%clk 0:00:15]}  Qc7 {[%clk 0:01:03]} 25. Nc3 {[%clk 0:00:11]}  Bxc1 {[%clk 0:00:57]} 26. Rxc1 {[%clk 0:00:10]}  Qf4 {[%clk 0:00:58]} 27. Rc2 {[%clk 0:00:08]}  Nxg4 {[%clk 0:00:57]} 28. Kg2 {[%clk 0:00:06]}  Ne3+ {[%clk 0:00:57]} 29. Kf2 {[%clk 0:00:06]}  Nxc2 {[%clk 0:00:57]} 30. Qxc2 {[%clk 0:00:00]}  Rxh2+ {[%clk 0:00:55]} 0-1

[Event "December 12 Late 2023"]
[Site "https://www.chess.com"]
[Date "2023.12.12"]
[Round "4"]
[White "Clarke, Matthew"]
[Black "Serra Canals, Oriol"]
[Result "0-1"]
[Board "117"]
[TimeControl "180+1"]
[WhiteFideId "3227804"]
[BlackFideId "22276084"]
[WhiteElo "2225"]
[BlackElo "2461"]
[WhiteTeam "AUS"]
[BlackTeam "ESP"]
[WhiteClock "0:00:00"]
[BlackClock "0:00:13"]

1. d4 {[%clk 0:03:00]}  e6 {[%clk 0:03:00]} 2. c4 {[%clk 0:03:01]}  Nf6 {[%clk 0:03:00]} 3. g3 {[%clk 0:03:00]}  d5 {[%clk 0:03:00]} 4. Bg2 {[%clk 0:03:00]}  Be7 {[%clk 0:03:01]} 5. Nf3 {[%clk 0:03:01]}  O-O {[%clk 0:03:01]} 6. O-O {[%clk 0:03:01]}  dxc4 {[%clk 0:03:01]} 7. Qc2 {[%clk 0:02:54]}  a6 {[%clk 0:03:01]} 8. a4 {[%clk 0:02:50]}  Bd7 {[%clk 0:03:01]} 9. Qxc4 {[%clk 0:02:48]}  b5 {[%clk 0:02:45]} 10. Qc2 {[%clk 0:02:40]}  Bc6 {[%clk 0:02:44]} 11. Nbd2 {[%clk 0:02:21]}  Nd5 {[%clk 0:02:32]} 12. e4 {[%clk 0:02:10]}  Nb4 {[%clk 0:02:32]} 13. Qb1 {[%clk 0:02:03]}  Nd7 {[%clk 0:02:27]} 14. Nb3 {[%clk 0:01:56]}  bxa4 {[%clk 0:02:12]} 15. Na5 {[%clk 0:01:36]}  Bb5 {[%clk 0:02:13]} 16. Bd2 {[%clk 0:01:36]}  Bxf1 {[%clk 0:01:53]} 17. Bxf1 {[%clk 0:01:25]}  c5 {[%clk 0:01:29]} 18. Rxa4 {[%clk 0:01:22]}  Nb6 {[%clk 0:01:27]} 19. Ra1 {[%clk 0:01:21]}  cxd4 {[%clk 0:01:25]} 20. e5 {[%clk 0:00:27]}  Rc8 {[%clk 0:01:21]} 21. Bxb4 {[%clk 0:00:25]}  Bxb4 {[%clk 0:01:22]} 22. Bxa6 {[%clk 0:00:20]}  Rc5 {[%clk 0:00:43]} 23. Qe4 {[%clk 0:00:19]}  Qd5 {[%clk 0:00:43]} 24. Qxd5 {[%clk 0:00:15]}  Nxd5 {[%clk 0:00:43]} 25. Nb3 {[%clk 0:00:14]}  Rc2 {[%clk 0:00:40]} 26. Rb1 {[%clk 0:00:10]}  Ra8 {[%clk 0:00:31]} 27. Bd3 {[%clk 0:00:09]}  Rcc8 {[%clk 0:00:25]} 28. Nfxd4 {[%clk 0:00:10]}  Ra2 {[%clk 0:00:20]} 29. f4 {[%clk 0:00:08]}  g6 {[%clk 0:00:20]} 30. Kf2 {[%clk 0:00:08]}  Bc5 {[%clk 0:00:18]} 31. Kf3 {[%clk 0:00:07]}  Ba7 {[%clk 0:00:16]} 32. Ke4 {[%clk 0:00:07]}  Nb4 {[%clk 0:00:16]} 33. Bb5 {[%clk 0:00:06]}  Rb8 {[%clk 0:00:15]} 34. Ra1 {[%clk 0:00:01]}  Rxa1 {[%clk 0:00:13]} 35. Nxa1 {[%clk 0:00:00]}  Bxd4 {[%clk 0:00:13]} 0-1

[Event "December 12 Late 2023"]
[Site "https://www.chess.com"]
[Date "2023.12.12"]
[Round "4"]
[White "Dmitrenko, Viktor"]
[Black "Jing, Andrew"]
[Result "1-0"]
[Board "120"]
[TimeControl "180+1"]
[WhiteFideId "14110270"]
[BlackFideId "30984076"]
[WhiteElo "2452"]
[BlackElo "2182"]
[WhiteTeam "UKR"]
[BlackTeam "USA"]
[WhiteClock "0:02:14"]
[BlackClock "0:02:33"]

1. d4 {[%clk 0:03:00]}  Nf6 {[%clk 0:02:57]} 2. Nf3 {[%clk 0:03:00]}  g6 {[%clk 0:02:58]} 3. Bg5 {[%clk 0:02:58]}  Bg7 {[%clk 0:02:58]} 4. Nbd2 {[%clk 0:02:58]}  O-O {[%clk 0:02:54]} 5. e3 {[%clk 0:02:58]}  h6 {[%clk 0:02:53]} 6. Bh4 {[%clk 0:02:56]}  g5 {[%clk 0:02:54]} 7. Bg3 {[%clk 0:02:56]}  Nh5 {[%clk 0:02:54]} 8. Nxg5 {[%clk 0:02:44]}  Nxg3 {[%clk 0:02:49]} 9. hxg3 {[%clk 0:02:39]}  hxg5 {[%clk 0:02:48]} 10. Qh5 {[%clk 0:02:40]}  f6 {[%clk 0:02:48]} 11. Bd3 {[%clk 0:02:39]}  f5 {[%clk 0:02:42]} 12. Qh7+ {[%clk 0:02:31]}  Kf7 {[%clk 0:02:40]} 13. Qxf5+ {[%clk 0:02:31]}  Kg8 {[%clk 0:02:33]} 14. Rh8+ {[%clk 0:02:14]} 1-0